{"text_format":"1","workbook":"xlsx","n_sheets":3,"sheets":["QUOTATION","Data","Admin"],"not_rendered":{"charts":0,"images":1,"macros":1,"external_links":0,"defined_names":4,"comments":1,"pivot_tables":0},"unopened":[],"bounds":{"document_bytes":16777216,"sheet_cells":100000,"rows_first":2000,"rows_last":500,"rows_between":2000,"halvings":0,"cell_chars":16384,"cell_head_chars":4096},"cells_cut":0,"cells_raw":0,"read":"whole","date_system":"1900"}

{"sheet":"QUOTATION","index":0,"n_rows":29,"n_cols":5,"rows_kept":29,"cut":false,"hidden":false,"merged":[[3,1,3,3],[27,0,27,2],[27,3,27,4],[28,0,28,4],[24,0,24,2],[24,3,24,4],[25,0,25,2],[25,3,25,4],[26,0,26,2],[26,3,26,4]]}
["التاريخ :","2022-09-06T13:32:15",null,"رقم عرض السعر :",1]
["اسم العميل :",null,null,"م.المبيعات :"]
[" :      Email",{"$f":"IFERROR(VLOOKUP(E2,Admin!A2:C8,2,0),\"\")","v":""},null,"WhatsApp :",{"$f":"IFERROR(VLOOKUP(E2,Admin!A2:C8,3,0),\"\")","v":""}]
[null,"عرض سعر غير شامل الضرائب "]
["رقم الصنف","اسم الصنف","العدد","السعر","الإجمالي"]
[1,null,null,null,{"$f":"IFERROR(C6*D6,\"\")","v":0}]
[{"$f":"IF(B7>0,A6+1,\"\")","v":""},null,null,null,0]
[{"$f":"IF(B8>0,A7+1,\"\")","v":""},null,null,null,0]
["",null,null,null,0]
["",null,null,null,0]
["",null,null,null,0]
["",null,null,null,0]
["",null,null,null,0]
["",null,null,null,0]
["",null,null,null,0]
["",null,null,null,0]
["",null,null,null,0]
["",null,null,null,0]
["",null,null,null,0]
["",null,null,null,0]
["",null,null,null,0]
["",null,null,null,0]
["",null,null,null,0]
["",null,null,null,0]
["إجمالى قيمة عرض السعر",null,null,{"$f":"SUM(E6:E24)","v":0}]
["خصم 5% مسموح به",null,null,{"$f":"IF(A26>0,-D25*5/100,\"\")","v":0}]
["قيمة 14% ضرائب القيمة المضافة",null,null,{"$f":"D25*14/100","v":0}]
["صافى القيمة ",null,null,{"$f":"SUM(D25:E27)","v":0}]
["(Adel.Georg+work@gmail.com)رجاء المراسلة علي"]

{"sheet":"Data","index":1,"n_rows":1,"n_cols":10,"rows_kept":1,"cut":false,"hidden":false,"merged":[]}
["رقم الفاتورة","تاريخ عرض السعر","اسم العميل","م.المبيعات","الاميل","مسلسل","اسم الصنف","الكمية","السعر","الاجمالي"]

{"sheet":"Admin","index":2,"n_rows":2,"n_cols":7,"rows_kept":2,"cut":false,"hidden":false,"merged":[]}
["Name","Email id","WhatsApp Number",null,null,null,{"$f":"HYPERLINK(\"https://web.whatsapp.com/send?phone=%2B\"&E3&\"&text=\" &B2 &\" \"& B4&\"&app_absent=1&send=1\",\"\")","v":""}]
["اسم الشخص","اميله","رقم الواتس اب يجب وضع مفتاح الدولة"]